[Event "Titled Tuesday Blitz October 11 Early 2022"]
[White "Kuznetsova, Olga"]
[Black "Begunov, Konstantin"]
[WhiteFideId "4191323"]
[BlackFideId "4118510"]
[WhiteElo "2134"]
[BlackElo "2225"]
[Result "1-0"]
[Round "09"]
[TimeControl "180+1"]
[Date "2022.10.12"]
[WhiteClock "0:00:24"]
[BlackClock "0:00:03"]

1. d4 {[%clk 0:03:00]}  d5 {[%clk 0:02:58]} 2. Bf4 {[%clk 0:03:00]}  c6 {[%clk 0:02:57]} 3. e3 {[%clk 0:03:01]}  Qb6 {[%clk 0:02:57]} 4. b3 {[%clk 0:02:56]}  Bf5 {[%clk 0:02:56]} 5. Bd3 {[%clk 0:02:52]}  Bxd3 {[%clk 0:02:54]} 6. Qxd3 {[%clk 0:02:51]}  e6 {[%clk 0:02:55]} 7. Nd2 {[%clk 0:02:51]}  Nf6 {[%clk 0:02:53]} 8. Ngf3 {[%clk 0:02:51]}  Be7 {[%clk 0:02:48]} 9. O-O {[%clk 0:02:49]}  O-O {[%clk 0:02:48]} 10. h3 {[%clk 0:02:49]}  c5 {[%clk 0:02:46]} 11. c4 {[%clk 0:02:45]}  Nc6 {[%clk 0:02:40]} 12. dxc5 {[%clk 0:02:45]}  Bxc5 {[%clk 0:02:37]} 13. Rac1 {[%clk 0:02:45]}  Rfd8 {[%clk 0:02:28]} 14. Qe2 {[%clk 0:02:42]}  Ba3 {[%clk 0:02:24]} 15. Rcd1 {[%clk 0:02:42]}  Qa6 {[%clk 0:02:19]} 16. Ne5 {[%clk 0:02:15]}  Nxe5 {[%clk 0:02:08]} 17. Bxe5 {[%clk 0:02:16]}  Be7 {[%clk 0:02:07]} 18. a4 {[%clk 0:02:03]}  Nd7 {[%clk 0:01:48]} 19. Bc3 {[%clk 0:01:59]}  Nc5 {[%clk 0:01:35]} 20. Qg4 {[%clk 0:01:22]}  Bf8 {[%clk 0:01:33]} 21. cxd5 {[%clk 0:01:17]}  Rxd5 {[%clk 0:01:30]} 22. Ne4 {[%clk 0:01:10]}  Nxe4 {[%clk 0:00:38]} 23. Qxe4 {[%clk 0:01:09]}  Rad8 {[%clk 0:00:38]} 24. Rxd5 {[%clk 0:01:08]}  Rxd5 {[%clk 0:00:39]} 25. Bd4 {[%clk 0:01:04]}  Qa5 {[%clk 0:00:29]} 26. Rc1 {[%clk 0:00:59]}  Qb4 {[%clk 0:00:20]} 27. Rc8 {[%clk 0:00:55]}  Rf5 {[%clk 0:00:14]} 28. Qg4 {[%clk 0:00:29]}  Qe1+ {[%clk 0:00:13]} 29. Kh2 {[%clk 0:00:29]}  g5 {[%clk 0:00:09]} 30. e4 {[%clk 0:00:27]}  Ra5 {[%clk 0:00:07]} 31. e5 {[%clk 0:00:24]}  Rd5 {[%clk 0:00:04]} 32. Qxg5+ {[%clk 0:00:24]}  Kh8 {[%clk 0:00:03]} 33. Rxf8# {[%clk 0:00:24]} 1-0


[Site "https://www.chess.com"]

[Event "Titled Tuesday Blitz October 11 Early 2022"]
[White "Makhnev, Denis"]
[Black "Hambleton, Aman"]
[WhiteFideId "13707647"]
[BlackFideId "2606577"]
[WhiteElo "2486"]
[BlackElo "2538"]
[Result "1-0"]
[Round "09"]
[TimeControl "180+1"]
[Date "2022.10.11"]
[WhiteClock "0:00:43"]
[BlackClock "0:00:02"]

1. d4 {[%clk 0:02:58]}  Nf6 {[%clk 0:02:34]} 2. c4 {[%clk 0:02:56]}  e6 {[%clk 0:02:33]} 3. Nf3 {[%clk 0:02:56]}  b6 {[%clk 0:02:26]} 4. g3 {[%clk 0:02:56]}  Ba6 {[%clk 0:02:23]} 5. Qb3 {[%clk 0:02:56]}  Nc6 {[%clk 0:02:13]} 6. Nbd2 {[%clk 0:02:56]}  Bb7 {[%clk 0:02:10]} 7. e4 {[%clk 0:02:53]}  d6 {[%clk 0:01:29]} 8. Bg2 {[%clk 0:02:49]}  e5 {[%clk 0:01:09]} 9. d5 {[%clk 0:02:44]}  Nb8 {[%clk 0:01:07]} 10. O-O {[%clk 0:02:42]}  g6 {[%clk 0:01:07]} 11. c5 {[%clk 0:02:39]}  Ba6 {[%clk 0:00:52]} 12. Qa4+ {[%clk 0:02:23]}  Nfd7 {[%clk 0:00:38]} 13. c6 {[%clk 0:02:18]}  Nc5 {[%clk 0:00:33]} 14. Qc2 {[%clk 0:02:18]}  Bd3 {[%clk 0:00:20]} 15. Qc3 {[%clk 0:02:18]}  Bxf1 {[%clk 0:00:18]} 16. Bxf1 {[%clk 0:02:19]}  a5 {[%clk 0:00:18]} 17. b3 {[%clk 0:02:11]}  Bg7 {[%clk 0:00:16]} 18. a3 {[%clk 0:02:12]}  O-O {[%clk 0:00:11]} 19. b4 {[%clk 0:02:07]}  axb4 {[%clk 0:00:06]} 20. axb4 {[%clk 0:02:07]}  Na4 {[%clk 0:00:02]} 21. Qc2 {[%clk 0:02:00]}  b5 {[%clk 0:00:02]} 22. Bxb5 {[%clk 0:02:00]}  Nb6 {[%clk 0:00:03]} 23. Rxa8 {[%clk 0:02:00]}  Nxa8 {[%clk 0:00:04]} 24. Bd3 {[%clk 0:02:00]}  Qc8 {[%clk 0:00:01]} 25. b5 {[%clk 0:02:00]}  Nb6 {[%clk 0:00:02]} 26. Kg2 {[%clk 0:01:58]}  h6 {[%clk 0:00:02]} 27. Nh4 {[%clk 0:01:55]}  Kh7 {[%clk 0:00:02]} 28. Ndf3 {[%clk 0:01:55]}  Bf6 {[%clk 0:00:02]} 29. Be3 {[%clk 0:01:54]}  Kg7 {[%clk 0:00:02]} 30. h3 {[%clk 0:01:51]}  Rh8 {[%clk 0:00:02]} 31. Qd2 {[%clk 0:01:48]}  Na4 {[%clk 0:00:02]} 32. Qb4 {[%clk 0:01:46]}  Nb6 {[%clk 0:00:02]} 33. Qa5 {[%clk 0:01:46]}  Bd8 {[%clk 0:00:01]} 34. Qa7 {[%clk 0:01:45]}  Rf8 {[%clk 0:00:01]} 35. Qa3 {[%clk 0:01:34]}  N8d7 {[%clk 0:00:01]} 36. cxd7 {[%clk 0:01:34]}  Qxd7 {[%clk 0:00:02]} 37. Qc1 {[%clk 0:01:30]}  Rh8 {[%clk 0:00:02]} 38. Kh2 {[%clk 0:01:23]}  Be7 {[%clk 0:00:02]} 39. Ng2 {[%clk 0:01:17]}  Qd8 {[%clk 0:00:02]} 40. Qc6 {[%clk 0:01:14]}  Re8 {[%clk 0:00:02]} 41. Nd2 {[%clk 0:01:05]}  Rf8 {[%clk 0:00:02]} 42. Bxb6 {[%clk 0:01:03]}  cxb6 {[%clk 0:00:03]} 43. Nc4 {[%clk 0:01:03]}  f5 {[%clk 0:00:03]} 44. exf5 {[%clk 0:00:59]}  gxf5 {[%clk 0:00:04]} 45. Qxb6 {[%clk 0:00:59]}  f4 {[%clk 0:00:04]} 46. Qxd8 {[%clk 0:00:58]}  fxg3+ {[%clk 0:00:04]} 47. fxg3 {[%clk 0:00:58]}  Rxd8 {[%clk 0:00:05]} 48. Nge3 {[%clk 0:00:58]}  Kf6 {[%clk 0:00:05]} 49. Na5 {[%clk 0:00:58]}  Ra8 {[%clk 0:00:04]} 50. Nc6 {[%clk 0:00:57]}  Ra2+ {[%clk 0:00:04]} 51. Kg1 {[%clk 0:00:57]}  Ra1+ {[%clk 0:00:03]} 52. Kf2 {[%clk 0:00:57]}  Ra2+ {[%clk 0:00:04]} 53. Kf3 {[%clk 0:00:57]}  Bf8 {[%clk 0:00:04]} 54. b6 {[%clk 0:00:56]}  Rb2 {[%clk 0:00:04]} 55. Nc4 {[%clk 0:00:55]}  Rb3 {[%clk 0:00:05]} 56. Ke4 {[%clk 0:00:55]}  h5 {[%clk 0:00:04]} 57. h4 {[%clk 0:00:55]}  Bh6 {[%clk 0:00:03]} 58. N6a5 {[%clk 0:00:53]}  Rb4 {[%clk 0:00:03]} 59. Be2 {[%clk 0:00:50]}  Kg7 {[%clk 0:00:02]} 60. Bxh5 {[%clk 0:00:49]}  Bc1 {[%clk 0:00:02]} 61. Kd3 {[%clk 0:00:49]}  e4+ {[%clk 0:00:02]} 62. Kxe4 {[%clk 0:00:45]}  Kf6 {[%clk 0:00:02]} 63. Kd3 {[%clk 0:00:45]}  Rb5 {[%clk 0:00:02]} 64. Bf3 {[%clk 0:00:45]}  Bh6 {[%clk 0:00:02]} 65. g4 {[%clk 0:00:45]}  Ke7 {[%clk 0:00:02]} 66. g5 {[%clk 0:00:43]}  Bg7 {[%clk 0:00:03]} 67. h5 {[%clk 0:00:43]}  Ba1 {[%clk 0:00:03]} 68. h6 {[%clk 0:00:44]}  Rb1 {[%clk 0:00:04]} 69. g6 {[%clk 0:00:43]}  Rg1 {[%clk 0:00:02]} 70. b7 {[%clk 0:00:43]} 1-0


[Site "https://www.chess.com"]

[Event "Titled Tuesday Blitz October 11 Early 2022"]
[White "Martin Carmona, Gaston Manuel"]
[Black "Hartikainen, Jarmo"]
[WhiteFideId "22284567"]
[BlackFideId "503134"]
[WhiteElo "2235"]
[BlackElo "2169"]
[Result "1-0"]
[Round "09"]
[TimeControl "180+1"]
[Date "2022.10.12"]
[WhiteClock "0:01:31"]
[BlackClock "0:00:23"]

1. d4 {[%clk 0:02:56]}  Nf6 {[%clk 0:02:59]} 2. Nf3 {[%clk 0:02:38]}  g6 {[%clk 0:02:58]} 3. c4 {[%clk 0:02:36]}  Bg7 {[%clk 0:02:56]} 4. Nc3 {[%clk 0:02:36]}  d5 {[%clk 0:02:57]} 5. cxd5 {[%clk 0:02:35]}  Nxd5 {[%clk 0:02:57]} 6. e4 {[%clk 0:02:36]}  Nxc3 {[%clk 0:02:57]} 7. bxc3 {[%clk 0:02:37]}  O-O {[%clk 0:02:57]} 8. Be3 {[%clk 0:02:35]}  c5 {[%clk 0:02:58]} 9. Be2 {[%clk 0:02:35]}  Nd7 {[%clk 0:02:57]} 10. O-O {[%clk 0:02:35]}  b6 {[%clk 0:02:50]} 11. Qd2 {[%clk 0:02:31]}  e6 {[%clk 0:02:30]} 12. Rad1 {[%clk 0:02:27]}  cxd4 {[%clk 0:02:19]} 13. cxd4 {[%clk 0:02:28]}  Bb7 {[%clk 0:02:18]} 14. d5 {[%clk 0:02:28]}  exd5 {[%clk 0:02:14]} 15. exd5 {[%clk 0:02:29]}  Rc8 {[%clk 0:02:09]} 16. Bd4 {[%clk 0:02:26]}  Nf6 {[%clk 0:01:52]} 17. Bxf6 {[%clk 0:02:21]}  Qxf6 {[%clk 0:01:45]} 18. d6 {[%clk 0:02:20]}  Rfd8 {[%clk 0:01:42]} 19. Bb5 {[%clk 0:02:13]}  a6 {[%clk 0:01:26]} 20. Be2 {[%clk 0:02:13]}  Rc6 {[%clk 0:01:20]} 21. d7 {[%clk 0:02:10]}  Rc7 {[%clk 0:01:14]} 22. Qe3 {[%clk 0:02:10]}  Qe6 {[%clk 0:01:01]} 23. Qxe6 {[%clk 0:02:07]}  fxe6 {[%clk 0:01:01]} 24. Rd6 {[%clk 0:02:04]}  Rc6 {[%clk 0:00:43]} 25. Rfd1 {[%clk 0:02:03]}  Bf8 {[%clk 0:00:36]} 26. Rxc6 {[%clk 0:02:02]}  Bxc6 {[%clk 0:00:37]} 27. Bc4 {[%clk 0:01:31]}  Kf7 {[%clk 0:00:28]} 28. Ne5+ {[%clk 0:01:30]}  Kf6 {[%clk 0:00:23]} 29. Nxc6 {[%clk 0:01:31]}  Be7 {[%clk 0:00:22]} 30. Nxd8 {[%clk 0:01:31]}  Bxd8 {[%clk 0:00:22]} 31. Rd6 {[%clk 0:01:31]}  b5 {[%clk 0:00:23]} 32. Rxe6+ {[%clk 0:01:31]}  Kf5 {[%clk 0:00:23]} 33. Re8 {[%clk 0:01:31]} 1-0


[Site "https://www.chess.com"]

[Event "Titled Tuesday Blitz October 11 Early 2022"]
[White "Martinez Alcantara, Jose Eduardo"]
[Black "Weetik, Vjacheslav"]
[WhiteFideId "3805662"]
[BlackFideId "4153472"]
[WhiteElo "2703"]
[BlackElo "2469"]
[Result "0-1"]
[Round "09"]
[TimeControl "180+1"]
[Date "2022.10.11"]
[WhiteClock "0:00:13"]
[BlackClock "0:00:06"]

1. e4 {[%clk 0:02:55]}  c5 {[%clk 0:02:59]} 2. Nf3 {[%clk 0:02:55]}  Nc6 {[%clk 0:03:00]} 3. c3 {[%clk 0:02:55]}  Nf6 {[%clk 0:02:55]} 4. Bd3 {[%clk 0:02:55]}  d5 {[%clk 0:02:46]} 5. e5 {[%clk 0:02:54]}  c4 {[%clk 0:02:17]} 6. Bc2 {[%clk 0:02:50]}  Ng4 {[%clk 0:02:11]} 7. Qe2 {[%clk 0:02:49]}  Qc7 {[%clk 0:02:07]} 8. Ba4 {[%clk 0:02:49]}  f6 {[%clk 0:01:25]} 9. exf6 {[%clk 0:02:43]}  gxf6 {[%clk 0:01:22]} 10. d4 {[%clk 0:02:40]}  Bd7 {[%clk 0:00:51]} 11. b3 {[%clk 0:02:20]}  cxb3 {[%clk 0:00:41]} 12. Bxb3 {[%clk 0:02:17]}  O-O-O {[%clk 0:00:31]} 13. h3 {[%clk 0:01:58]}  Nh6 {[%clk 0:00:30]} 14. Be3 {[%clk 0:01:58]}  Nf5 {[%clk 0:00:28]} 15. Nbd2 {[%clk 0:01:58]}  e6 {[%clk 0:00:22]} 16. c4 {[%clk 0:01:52]}  Kb8 {[%clk 0:00:18]} 17. cxd5 {[%clk 0:01:50]}  exd5 {[%clk 0:00:19]} 18. O-O {[%clk 0:01:48]}  Bc8 {[%clk 0:00:13]} 19. Rfc1 {[%clk 0:01:44]}  Rg8 {[%clk 0:00:13]} 20. Ba4 {[%clk 0:01:42]}  Nxe3 {[%clk 0:00:11]} 21. Qxe3 {[%clk 0:01:34]}  Bxh3 {[%clk 0:00:11]} 22. Ne1 {[%clk 0:01:35]}  Bf5 {[%clk 0:00:06]} 23. Nb3 {[%clk 0:01:07]}  Bd6 {[%clk 0:00:07]} 24. Qf3 {[%clk 0:01:04]}  Be4 {[%clk 0:00:07]} 25. Qh5 {[%clk 0:01:04]}  Rg5 {[%clk 0:00:07]} 26. Qh3 {[%clk 0:01:02]}  Rdg8 {[%clk 0:00:07]} 27. f3 {[%clk 0:01:02]}  Bf5 {[%clk 0:00:07]} 28. Qh6 {[%clk 0:01:00]}  Bg3 {[%clk 0:00:07]} 29. Nc2 {[%clk 0:00:31]}  Bf2+ {[%clk 0:00:07]} 30. Kf1 {[%clk 0:00:20]}  Rxg2 {[%clk 0:00:07]} 31. Nc5 {[%clk 0:00:20]}  Rg1+ {[%clk 0:00:06]} 32. Kxf2 {[%clk 0:00:20]}  Qg3+ {[%clk 0:00:05]} 33. Ke2 {[%clk 0:00:14]}  Rg2+ {[%clk 0:00:06]} 34. Kd1 {[%clk 0:00:13]}  Qxf3+ {[%clk 0:00:06]} 35. Ke1 {[%clk 0:00:13]}  Qe2# {[%clk 0:00:06]} 0-1


[Site "https://www.chess.com"]

[Event "Titled Tuesday Blitz October 11 Early 2022"]
[White "Matinian, Nikita"]
[Black "Di Nicolantonio, Lucas"]
[WhiteFideId "24129100"]
[BlackFideId "680460"]
[WhiteElo "2706"]
[BlackElo "2583"]
[Result "0-1"]
[Round "09"]
[TimeControl "180+1"]
[Date "2022.10.12"]
[WhiteClock "0:00:48"]
[BlackClock "0:00:39"]

1. e4 {[%clk 0:03:00]}  g6 {[%clk 0:02:55]} 2. d4 {[%clk 0:03:00]}  Bg7 {[%clk 0:02:55]} 3. Nc3 {[%clk 0:03:00]}  d6 {[%clk 0:02:56]} 4. g4 {[%clk 0:03:00]}  a6 {[%clk 0:02:54]} 5. Bg2 {[%clk 0:02:59]}  Nc6 {[%clk 0:02:49]} 6. Be3 {[%clk 0:02:57]}  e5 {[%clk 0:02:46]} 7. d5 {[%clk 0:02:49]}  Nd4 {[%clk 0:02:46]} 8. h3 {[%clk 0:02:50]}  h5 {[%clk 0:02:40]} 9. g5 {[%clk 0:02:46]}  c5 {[%clk 0:02:31]} 10. Nce2 {[%clk 0:02:38]}  h4 {[%clk 0:02:13]} 11. c3 {[%clk 0:02:35]}  Nxe2 {[%clk 0:02:09]} 12. Nxe2 {[%clk 0:02:35]}  Rh5 {[%clk 0:02:05]} 13. Qd2 {[%clk 0:02:32]}  Bd7 {[%clk 0:02:01]} 14. Bf3 {[%clk 0:02:31]}  Rh8 {[%clk 0:02:00]} 15. Bg4 {[%clk 0:02:28]}  Bxg4 {[%clk 0:01:56]} 16. hxg4 {[%clk 0:02:29]}  Qd7 {[%clk 0:01:57]} 17. f3 {[%clk 0:02:29]}  Ne7 {[%clk 0:01:57]} 18. Rh3 {[%clk 0:02:26]}  O-O-O {[%clk 0:01:54]} 19. Bf2 {[%clk 0:02:26]}  f5 {[%clk 0:01:48]} 20. gxf6 {[%clk 0:02:26]}  Bxf6 {[%clk 0:01:48]} 21. b4 {[%clk 0:02:10]}  cxb4 {[%clk 0:01:44]} 22. cxb4 {[%clk 0:02:11]}  Kb8 {[%clk 0:01:45]} 23. Qe3 {[%clk 0:02:09]}  Nc8 {[%clk 0:01:45]} 24. Kf1 {[%clk 0:02:03]}  Rdf8 {[%clk 0:01:37]} 25. Kg2 {[%clk 0:02:02]}  Bd8 {[%clk 0:01:38]} 26. Rc1 {[%clk 0:01:57]}  Bc7 {[%clk 0:01:27]} 27. Rxh4 {[%clk 0:01:47]}  Rxh4 {[%clk 0:01:25]} 28. Bxh4 {[%clk 0:01:47]}  Rh8 {[%clk 0:01:15]} 29. Bg3 {[%clk 0:01:39]}  Qh7 {[%clk 0:01:08]} 30. Rxc7 {[%clk 0:01:17]}  Qxc7 {[%clk 0:00:56]} 31. Kf2 {[%clk 0:01:17]}  Rh1 {[%clk 0:00:54]} 32. f4 {[%clk 0:01:14]}  exf4 {[%clk 0:00:50]} 33. Bxf4 {[%clk 0:01:15]}  Qf7 {[%clk 0:00:45]} 34. Kg2 {[%clk 0:01:12]}  Qh7 {[%clk 0:00:43]} 35. e5 {[%clk 0:01:02]}  g5 {[%clk 0:00:42]} 36. exd6 {[%clk 0:00:48]}  gxf4 {[%clk 0:00:39]} 37. Qxf4 {[%clk 0:00:48]}  Qh3+ {[%clk 0:00:39]} 38. Kf2 {[%clk 0:00:48]}  Rf1# {[%clk 0:00:39]} 0-1


[Site "https://www.chess.com"]

[Event "Titled Tuesday Blitz October 11 Early 2022"]
[White "Mohammadian, Mohammad"]
[Black "Schut, Han"]
[WhiteFideId "12566055"]
[BlackFideId "1005561"]
[WhiteElo "1489"]
[BlackElo "2024"]
[Result "0-1"]
[Round "09"]
[TimeControl "180+1"]
[Date "2022.10.12"]
[WhiteClock "0:00:01"]
[BlackClock "0:00:16"]

1. e4 {[%clk 0:03:00]}  c5 {[%clk 0:02:59]} 2. Nf3 {[%clk 0:02:57]}  d6 {[%clk 0:02:59]} 3. d4 {[%clk 0:02:57]}  cxd4 {[%clk 0:03:00]} 4. Nxd4 {[%clk 0:02:57]}  Nf6 {[%clk 0:03:01]} 5. Nc3 {[%clk 0:02:56]}  a6 {[%clk 0:03:01]} 6. Be2 {[%clk 0:02:56]}  e5 {[%clk 0:03:01]} 7. Nb3 {[%clk 0:02:54]}  Be7 {[%clk 0:03:01]} 8. Be3 {[%clk 0:02:54]}  Be6 {[%clk 0:03:01]} 9. O-O {[%clk 0:02:53]}  Nbd7 {[%clk 0:03:02]} 10. f3 {[%clk 0:02:53]}  O-O {[%clk 0:02:59]} 11. Qe1 {[%clk 0:02:52]}  Qc7 {[%clk 0:02:57]} 12. Rd1 {[%clk 0:02:50]}  Rac8 {[%clk 0:02:49]} 13. Qf2 {[%clk 0:02:50]}  b5 {[%clk 0:02:48]} 14. a3 {[%clk 0:02:49]}  Qb7 {[%clk 0:02:44]} 15. Rd2 {[%clk 0:02:46]}  d5 {[%clk 0:02:42]} 16. exd5 {[%clk 0:02:45]}  Bxd5 {[%clk 0:02:42]} 17. Nxd5 {[%clk 0:02:44]}  Nxd5 {[%clk 0:02:43]} 18. Kh1 {[%clk 0:02:27]}  Rfd8 {[%clk 0:02:24]} 19. Rfd1 {[%clk 0:02:26]}  Nxe3 {[%clk 0:02:24]} 20. Qxe3 {[%clk 0:02:25]}  Qc7 {[%clk 0:02:09]} 21. Qe4 {[%clk 0:02:18]}  Nf6 {[%clk 0:02:01]} 22. Qe3 {[%clk 0:02:12]}  h6 {[%clk 0:01:50]} 23. Rxd8+ {[%clk 0:02:09]}  Rxd8 {[%clk 0:01:51]} 24. Rxd8+ {[%clk 0:02:05]}  Bxd8 {[%clk 0:01:47]} 25. Bd3 {[%clk 0:02:04]}  Be7 {[%clk 0:01:39]} 26. g3 {[%clk 0:01:56]}  g6 {[%clk 0:01:38]} 27. Kg2 {[%clk 0:01:53]}  Kg7 {[%clk 0:01:38]} 28. Nd2 {[%clk 0:01:41]}  Nd5 {[%clk 0:01:23]} 29. Qe2 {[%clk 0:01:33]}  Bc5 {[%clk 0:01:09]} 30. Ne4 {[%clk 0:01:32]}  Bb6 {[%clk 0:01:01]} 31. Kh1 {[%clk 0:01:06]}  f5 {[%clk 0:01:00]} 32. Nd2 {[%clk 0:00:54]}  Kf6 {[%clk 0:00:59]} 33. c3 {[%clk 0:00:40]}  Qc5 {[%clk 0:00:57]} 34. Qe1 {[%clk 0:00:34]}  Qe3 {[%clk 0:00:45]} 35. Qxe3 {[%clk 0:00:33]}  Nxe3 {[%clk 0:00:45]} 36. Nb3 {[%clk 0:00:24]}  Nd1 {[%clk 0:00:41]} 37. a4 {[%clk 0:00:18]}  bxa4 {[%clk 0:00:32]} 38. Nd2 {[%clk 0:00:17]}  Nf2+ {[%clk 0:00:32]} 39. Kg2 {[%clk 0:00:15]}  Nxd3 {[%clk 0:00:33]} 40. Nc4 {[%clk 0:00:13]}  Nxb2 {[%clk 0:00:28]} 41. Nxb6 {[%clk 0:00:12]}  a3 {[%clk 0:00:29]} 42. Nd5+ {[%clk 0:00:05]}  Ke6 {[%clk 0:00:22]} 43. Nb4 {[%clk 0:00:05]}  a5 {[%clk 0:00:17]} 44. Na2 {[%clk 0:00:05]}  Kd5 {[%clk 0:00:16]} 45. Kf2 {[%clk 0:00:05]}  Kc4 {[%clk 0:00:17]} 46. Ke2 {[%clk 0:00:05]}  Kb3 {[%clk 0:00:17]} 47. Nc1+ {[%clk 0:00:04]}  Kc2 {[%clk 0:00:18]} 48. Na2 {[%clk 0:00:03]}  Na4 {[%clk 0:00:18]} 49. c4 {[%clk 0:00:01]}  Nc3+ {[%clk 0:00:16]} 0-1


[Site "https://www.chess.com"]

[Event "Titled Tuesday Blitz October 11 Early 2022"]
[White "Orzech, Dominik"]
[Black "Indjic, Aleksandar"]
[WhiteFideId "1115065"]
[BlackFideId "911925"]
[WhiteElo "2462"]
[BlackElo "2816"]
[Result "0-1"]
[Round "09"]
[TimeControl "180+1"]
[Date "2022.10.12"]
[WhiteClock "0:00:31"]
[BlackClock "0:01:01"]

1. Nf3 {[%clk 0:02:42]}  d5 {[%clk 0:02:55]} 2. c4 {[%clk 0:02:41]}  d4 {[%clk 0:02:54]} 3. g3 {[%clk 0:02:40]}  Nc6 {[%clk 0:02:54]} 4. Bg2 {[%clk 0:02:39]}  e5 {[%clk 0:02:54]} 5. O-O {[%clk 0:02:36]}  e4 {[%clk 0:02:47]} 6. Ne1 {[%clk 0:02:36]}  h5 {[%clk 0:02:46]} 7. h4 {[%clk 0:02:32]}  g5 {[%clk 0:02:38]} 8. hxg5 {[%clk 0:02:27]}  h4 {[%clk 0:02:37]} 9. Bxe4 {[%clk 0:02:26]}  hxg3 {[%clk 0:02:36]} 10. fxg3 {[%clk 0:02:25]}  Qxg5 {[%clk 0:02:34]} 11. Qb3 {[%clk 0:02:14]}  Qh5 {[%clk 0:02:25]} 12. Rf2 {[%clk 0:02:09]}  Ne5 {[%clk 0:01:43]} 13. Bf3 {[%clk 0:01:47]}  Ng4 {[%clk 0:01:38]} 14. Qb5+ {[%clk 0:01:34]}  Qxb5 {[%clk 0:01:36]} 15. cxb5 {[%clk 0:01:35]}  Nxf2 {[%clk 0:01:36]} 16. Kxf2 {[%clk 0:01:35]}  Nf6 {[%clk 0:01:36]} 17. d3 {[%clk 0:01:33]}  Ng4+ {[%clk 0:01:36]} 18. Kg1 {[%clk 0:01:31]}  Bd6 {[%clk 0:01:34]} 19. Bf4 {[%clk 0:01:28]}  a6 {[%clk 0:01:16]} 20. bxa6 {[%clk 0:01:22]}  Rxa6 {[%clk 0:01:15]} 21. Nd2 {[%clk 0:01:21]}  Bxf4 {[%clk 0:01:11]} 22. gxf4 {[%clk 0:01:20]}  Rg6 {[%clk 0:01:11]} 23. Ng2 {[%clk 0:01:18]}  Ne3 {[%clk 0:01:08]} 24. Kf2 {[%clk 0:01:00]}  Nxg2 {[%clk 0:01:05]} 25. Bxg2 {[%clk 0:01:01]}  Rh2 {[%clk 0:01:04]} 26. Rg1 {[%clk 0:00:59]}  Bh3 {[%clk 0:01:04]} 27. Nf3 {[%clk 0:00:55]}  Rgxg2+ {[%clk 0:01:03]} 28. Rxg2 {[%clk 0:00:55]}  Rxg2+ {[%clk 0:01:02]} 29. Ke1 {[%clk 0:00:56]}  c5 {[%clk 0:01:01]} 30. b4 {[%clk 0:00:45]}  Bg4 {[%clk 0:01:01]} 31. Ne5 {[%clk 0:00:35]}  Rxe2+ {[%clk 0:01:00]} 32. Kf1 {[%clk 0:00:35]}  Rxe5 {[%clk 0:01:01]} 33. fxe5 {[%clk 0:00:31]}  cxb4 {[%clk 0:01:01]} 0-1


[Site "https://www.chess.com"]

[Event "Titled Tuesday Blitz October 11 Early 2022"]
[White "Parpiev, Isaak"]
[Black "Matveeva, Olga"]
[WhiteFideId "34281576"]
[BlackFideId "24107018"]
[WhiteElo "2100"]
[BlackElo "2055"]
[Result "1-0"]
[Round "09"]
[TimeControl "180+1"]
[Date "2022.10.12"]
[WhiteClock "0:00:04"]
[BlackClock "0:00:01"]

1. d4 {[%clk 0:03:00]}  Nf6 {[%clk 0:02:59]} 2. c4 {[%clk 0:02:59]}  e6 {[%clk 0:02:59]} 3. Nc3 {[%clk 0:02:59]}  Bb4 {[%clk 0:02:59]} 4. e3 {[%clk 0:02:58]}  O-O {[%clk 0:03:00]} 5. Bd3 {[%clk 0:02:58]}  d5 {[%clk 0:02:56]} 6. cxd5 {[%clk 0:02:58]}  Nxd5 {[%clk 0:02:48]} 7. Ne2 {[%clk 0:02:56]}  c5 {[%clk 0:02:46]} 8. a3 {[%clk 0:02:53]}  Bxc3+ {[%clk 0:02:43]} 9. bxc3 {[%clk 0:02:53]}  cxd4 {[%clk 0:02:42]} 10. cxd4 {[%clk 0:02:50]}  b6 {[%clk 0:02:41]} 11. O-O {[%clk 0:02:50]}  Bb7 {[%clk 0:02:41]} 12. Ng3 {[%clk 0:02:47]}  Nd7 {[%clk 0:02:36]} 13. e4 {[%clk 0:02:44]}  Ne7 {[%clk 0:02:13]} 14. Bg5 {[%clk 0:02:39]}  f6 {[%clk 0:02:11]} 15. Be3 {[%clk 0:02:36]}  Rc8 {[%clk 0:02:05]} 16. Qb3 {[%clk 0:02:35]}  Kh8 {[%clk 0:01:53]} 17. Qxe6 {[%clk 0:02:26]}  Re8 {[%clk 0:01:49]} 18. Qh3 {[%clk 0:02:22]}  Nf8 {[%clk 0:01:35]} 19. Rfd1 {[%clk 0:02:13]}  Rc3 {[%clk 0:01:28]} 20. Nh5 {[%clk 0:02:03]}  Neg6 {[%clk 0:01:15]} 21. f3 {[%clk 0:01:42]}  Qe7 {[%clk 0:01:03]} 22. Ng3 {[%clk 0:01:31]}  Rxa3 {[%clk 0:00:57]} 23. Nf5 {[%clk 0:01:30]}  Qb4 {[%clk 0:00:56]} 24. Rab1 {[%clk 0:01:13]}  Rb3 {[%clk 0:00:56]} 25. Qg3 {[%clk 0:01:05]}  Rxb1 {[%clk 0:00:51]} 26. Rxb1 {[%clk 0:01:04]}  Qc3 {[%clk 0:00:50]} 27. Bb5 {[%clk 0:01:00]}  Rc8 {[%clk 0:00:42]} 28. h4 {[%clk 0:00:54]}  a6 {[%clk 0:00:32]} 29. Rc1 {[%clk 0:00:47]}  Qb4 {[%clk 0:00:18]} 30. Rxc8 {[%clk 0:00:14]}  Bxc8 {[%clk 0:00:18]} 31. Bd3 {[%clk 0:00:09]}  Bxf5 {[%clk 0:00:18]} 32. exf5 {[%clk 0:00:09]}  Ne7 {[%clk 0:00:18]} 33. Be4 {[%clk 0:00:06]}  h6 {[%clk 0:00:15]} 34. Kh2 {[%clk 0:00:07]}  Qc4 {[%clk 0:00:14]} 35. Qd6 {[%clk 0:00:06]}  Nxf5 {[%clk 0:00:05]} 36. Bxf5 {[%clk 0:00:06]}  Qf7 {[%clk 0:00:04]} 37. d5 {[%clk 0:00:04]}  a5 {[%clk 0:00:04]} 38. Be6 {[%clk 0:00:03]}  Qe8 {[%clk 0:00:04]} 39. Qxb6 {[%clk 0:00:04]}  a4 {[%clk 0:00:03]} 40. Qb4 {[%clk 0:00:04]}  Qd8 {[%clk 0:00:02]} 41. Bf4 {[%clk 0:00:04]}  Nxe6 {[%clk 0:00:01]} 42. dxe6 {[%clk 0:00:04]}  Qe8 {[%clk 0:00:02]} 43. e7 {[%clk 0:00:04]}  h5 {[%clk 0:00:01]} 44. Bd6 {[%clk 0:00:04]} 1-0


[Site "https://www.chess.com"]